{"text_format":"1","workbook":"xlsx","n_sheets":8,"sheets":["設計パラメータ（共通）","Rotor形状設計","Stator形状設計","コイル設定","カスタム設定","管理情報","サンプル(例題)","開発者メモ"],"not_rendered":{"charts":0,"images":43,"macros":1,"external_links":0,"defined_names":10,"comments":6,"pivot_tables":0},"unopened":[],"bounds":{"document_bytes":16777216,"sheet_cells":100000,"rows_first":2000,"rows_last":500,"rows_between":2000,"halvings":0,"cell_chars":16384,"cell_head_chars":4096},"cells_cut":0,"cells_raw":0,"read":"whole","date_system":"1900"}

{"sheet":"設計パラメータ（共通）","index":0,"n_rows":38,"n_cols":7,"rows_kept":38,"cut":false,"hidden":false,"merged":[[35,0,37,0],[27,0,28,0],[29,0,32,0],[1,0,3,0],[4,0,8,0],[9,0,14,0],[15,0,17,0],[18,0,21,0],[23,0,26,0]]}
["基本設定","設計変数",null,null,"使用方法"]
["モデル全体","Rotor回転数[rpm]",1800,null,"STEP 1.","全体設定","「設計パラメータ（共通）」タブで、設計変数を入力し「全体設定」ボタンを押します。"]
[null,"3相交流電源周波数[Hz]",60,null,"STEP 2.","形状定義","「Rotor形状設計」タブで、作成したいRotor形状の寸法を入力しボタンを押します。"]
[null,"モデル厚み[mm]",60,null,null,null,"「Stator形状設計」タブで、作成したいStator形状の寸法を入力し、ボタンを押します。"]
["ロータ","極数",4,null,"STEP 3.","コイル設定","「コイル設定」タブで、回路やコイルの設計変数を入力し「結線表更新」ボタンを押します。"]
[null,"外径(直径)[mm]",55,null,null,null,"「コイル設定」タブで、「電源・Coil設定」ボタンを押します。"]
[null,"内径(直径)[mm]",16]
[null,"ロータコア材料名","35JN270_JFEスチール"]
[null,"磁石材料名","NMX-S43SH_プロテリアル"]
["ステータ","スロット数",24]
[null,"スロットあたりの相数",1]
[null,"外径(直径)[mm]",112]
[null,"内径(直径)[mm]",56]
[null,"ステータコア材料名","35JN270_JFEスチール"]
[null,"コイル材料名","008_銅Cu"]
["解析設定","メッシュサイズ[mm]",1]
[null,"空気領域のサイズ（倍率）",1.2]
[null,"計算ステップ数",180]
["対称性","モデルの分割数",4]
[null,"直列数",4]
[null,"並列数",1]
[null,"周期性","半周期"]
["高度な設定"]
["ロータコア","積層を考慮する",true]
[null,"占積率[%]",97]
[null,"渦電流を考慮する",false]
[null,"モデルの一体化",true]
["磁石","磁化方式","並行"]
[null,"渦電流を考慮する",false]
["ステータコア","積層を考慮する",true]
[null,"占積率[%]",97]
[null,"渦電流を考慮する",false]
[null,"モデルの一体化",true]
["コイル","渦電流を考慮する",false]
[null,"定常場高速解析","なし"]
["ロータ偏芯","偏芯方式","なし"]
[null,"ずれ位置(X)[mm]",0]
[null,"ずれ位置(Z)[mm]",0]

{"sheet":"Rotor形状設計","index":1,"n_rows":48,"n_cols":17,"rows_kept":48,"cut":false,"hidden":false,"merged":[]}
["Rotor\n(Inner)","SPM",null,"SPM(Width)",null,"SPM(Table)",null,"IPM",null,"IPM(Bar)",null,"IPM(V)",null,"IPM(Triangle)",null,"IPM(Cut)"]
["共通設定","極数",{"$f":"'設計パラメータ（共通）'!$C5","v":4},"極数",{"$f":"'設計パラメータ（共通）'!$C5","v":4},"極数",{"$f":"'設計パラメータ（共通）'!$C5","v":4},"極数",{"$f":"'設計パラメータ（共通）'!$C5","v":4},"極数",{"$f":"'設計パラメータ（共通）'!$C5","v":4},"極数",{"$f":"'設計パラメータ（共通）'!$C5","v":4},"極数",{"$f":"'設計パラメータ（共通）'!$C5","v":4},"極数",{"$f":"'設計パラメータ（共通）'!$C5","v":4}]
[null,"外径(D1)",{"$f":"'設計パラメータ（共通）'!$C6","v":55},"外径(D1)",{"$f":"'設計パラメータ（共通）'!$C6","v":55},"外径(D1)",{"$f":"'設計パラメータ（共通）'!$C6","v":55},"外径(D1)",{"$f":"'設計パラメータ（共通）'!$C6","v":55},"外径(D1)",{"$f":"'設計パラメータ（共通）'!$C6","v":55},"外径(直径)",{"$f":"'設計パラメータ（共通）'!$C6","v":55},"外径(直径)",{"$f":"'設計パラメータ（共通）'!$C6","v":55},"外径(D1)",{"$f":"'設計パラメータ（共通）'!$C6","v":55}]
[null,"内径(D2)",{"$f":"'設計パラメータ（共通）'!$C7","v":16},"内径(D2)",{"$f":"'設計パラメータ（共通）'!$C7","v":16},"内径(D2)",{"$f":"'設計パラメータ（共通）'!$C7","v":16},"内径(D2)",{"$f":"'設計パラメータ（共通）'!$C7","v":16},"内径(D2)",{"$f":"'設計パラメータ（共通）'!$C7","v":16},"内径(直径)",{"$f":"'設計パラメータ（共通）'!$C7","v":16},"内径(直径)",{"$f":"'設計パラメータ（共通）'!$C7","v":16},"内径(D2)",{"$f":"'設計パラメータ（共通）'!$C7","v":16}]
["寸法","磁石厚さ(MH)",2,"磁石厚さ(MH)",2,"磁石の距離(MD)",12,"磁石厚さ(MH)",2.5,"磁石長さ(MH)",9,"磁石厚さ(MH)",2,"磁石厚さ(MH)",1,"磁石厚さ(MH)",3]
[null,"磁石間距離(MD)",1,"磁石幅(ML)",14,"磁石幅(ML)",14,"磁石幅(ML)",22,"磁石幅(ML)",2,"磁石幅(ML)",4,"磁石幅(ML)",5,"磁石幅(ML)",14]
[null,"磁石面取り",0,"磁石面取り",0,"磁石面取り",0,"磁石の距離(MD)",5,"磁石の距離(MD)",3,"磁石の距離(MD)",6,"磁石の距離1(MD1)",1,"磁石の距離(MD)",10]
[null,"磁石丸み",0,"磁石丸み",0,"磁石丸み",0,"スリット間の距離(SD)",1.5,"スリット深さ(SE1)",1,"スリット間の距離(SD)",1,"磁石の距離2(MD2)",1,"スリット深さ(SH)",3]
[null,null,null,null,null,null,null,"スリット幅(SW)",0.7,"スリット深さ(SE2)",1,"スリット幅(SW)",2,"スリット間の距離(SD)",4]
[null,null,null,null,null,null,null,"スリットの角度(ST)",135,null,null,"スリットの角度(ST)",30,"スリット幅(SW)",2]
[null,null,null,null,null,null,null,"スリットの深さ(SE)",0.5,null,null,"スリット面取り",0.5,"スリットの角度(ST)",60]
[null,null,null,null,null,null,null,null,null,null,null,null,null,"スリット面取り",0.3]
[]
[]
[]
[]
[]
[]
[]
["Rotor\n(Outer)","SPM",null,"SPM(Width)"]
["共通設定","極数",{"$f":"'設計パラメータ（共通）'!$C5","v":4},"極数",{"$f":"'設計パラメータ（共通）'!$C5","v":4}]
[null,"外径(D1)",{"$f":"'設計パラメータ（共通）'!$C6","v":55},"外径(D1)",{"$f":"'設計パラメータ（共通）'!$C6","v":55}]
[null,"内径(D2)",{"$f":"'設計パラメータ（共通）'!$C7","v":16},"内径(D2)",{"$f":"'設計パラメータ（共通）'!$C7","v":16}]
["寸法","磁石厚さ(MH)",4,"磁石厚さ(MH)",3]
[null,"磁石間距離(MD)",1,"磁石幅(ML)",18]
[null,"磁石面取り",0,"磁石面取り",1]
[null,"磁石丸み",0,"磁石丸み",0]
[]
[]
[]
[]
[]
[]
[]
["Rotor\n(Inner)","かご"]
["共通設定","外径(直径)",{"$f":"'設計パラメータ（共通）'!$C6","v":55}]
[null,"内径(直径)",{"$f":"'設計パラメータ（共通）'!$C7","v":16}]
["材料","ロータコア材料名","35JN210_JFEスチール"]
[null,"かご材料名","001_アルミニウムAl"]
["寸法","かごの数",20]
[null,"かごの距離(CD)",10]
[null,"かご厚み(CH)",4]
[null,"かご間隔(CP)",3]
[null,"かご開口部幅(SW)",0.4]
[null,"かご外側面取り",0]
[null,"かご内側面取り",0]
[null,"かご外側丸み",0.5]
[null,"かご内側丸み",0.5]

{"sheet":"Stator形状設計","index":2,"n_rows":33,"n_cols":7,"rows_kept":33,"cut":false,"hidden":false,"merged":[]}
["Stator\n(Outer)","Parallel",null,"Width",null,"Rectangle"]
["共通設定","スロット数",{"$f":"'設計パラメータ（共通）'!$C10","v":24},"スロット数",{"$f":"'設計パラメータ（共通）'!$C10","v":24},"スロット数",{"$f":"'設計パラメータ（共通）'!$C10","v":24}]
[null,"スロットあたりの相数",{"$f":"'設計パラメータ（共通）'!$C11","v":1},"スロットあたりの相数",{"$f":"'設計パラメータ（共通）'!$C11","v":1},"スロットあたりの相数",{"$f":"'設計パラメータ（共通）'!$C11","v":1}]
[null,"外径(D1)",{"$f":"'設計パラメータ（共通）'!$C12","v":112},"外径(D1)",{"$f":"'設計パラメータ（共通）'!$C12","v":112},"外径(D1)",{"$f":"'設計パラメータ（共通）'!$C12","v":112}]
[null,"内径(D2)",{"$f":"'設計パラメータ（共通）'!$C13","v":56},"内径(D2)",{"$f":"'設計パラメータ（共通）'!$C13","v":56},"内径(D2)",{"$f":"'設計パラメータ（共通）'!$C13","v":56}]
["寸法","スロット距離(SD)",1.9,"スロット距離(SD)",2,"スロット距離(SD)",2]
[null,"スロット厚み(SH)",12,"スロット厚み(SH)",20,"スロット厚み(SH)",20]
[null,"スロット開口部幅(SO)",2,"スロット幅(SW)",8,"スロット幅(SW)",8]
[null,"ティース幅(TW)",3.3,"スロット開口部幅(SO)",2,"スロット開口部幅(SO)",2]
[null,"スロット外側面取り",0,"スロット外側面取り",0,"スロット外側面取り",1]
[null,"スロット内側面取り",0,"スロット内側面取り",0,"スロット内側面取り",1]
[null,"スロット外側丸み",3.375,"スロット外側丸み",0,"スロット外側丸み",0]
[null,"スロット内側丸み",0,"スロット内側丸み",0,"スロット内側丸み",0]
[]
[]
[]
[]
[]
[]
[]
["Stator\n(Inner)","Parallel",null,"Width",null,"Rectangle"]
["共通設定","スロット数",{"$f":"'設計パラメータ（共通）'!$C10","v":24},"スロット数",{"$f":"'設計パラメータ（共通）'!$C10","v":24},"スロット数",{"$f":"'設計パラメータ（共通）'!$C10","v":24}]
[null,"スロットあたりの相数",{"$f":"'設計パラメータ（共通）'!$C11","v":1},"スロットあたりの相数",{"$f":"'設計パラメータ（共通）'!$C11","v":1},"スロットあたりの相数",{"$f":"'設計パラメータ（共通）'!$C11","v":1}]
[null,"外径(D1)",{"$f":"'設計パラメータ（共通）'!$C12","v":112},"外径(D1)",{"$f":"'設計パラメータ（共通）'!$C12","v":112},"外径(D1)",{"$f":"'設計パラメータ（共通）'!$C12","v":112}]
[null,"内径(D2)",{"$f":"'設計パラメータ（共通）'!$C13","v":56},"内径(D2)",{"$f":"'設計パラメータ（共通）'!$C13","v":56},"内径(D2)",{"$f":"'設計パラメータ（共通）'!$C13","v":56}]
["寸法","スロット距離(SD)",5,"スロット距離(SD)",8,"スロット距離(SD)",8]
[null,"スロット厚み(SH)",8,"スロット厚み(SH)",6,"スロット厚み(SH)",6]
[null,"スロット開口部幅(SO)",1,"スロット幅(SW)",4,"スロット幅(SW)",4]
[null,"ティース幅(TW)",1,"スロット開口部幅(SO)",1,"スロット開口部幅(SO)",1]
[null,"スロット外側面取り",0,"スロット外側面取り",0,"スロット外側面取り",0]
[null,"スロット内側面取り",0,"スロット内側面取り",0,"スロット内側面取り",0]
[null,"スロット外側丸み",0,"スロット外側丸み",0,"スロット外側丸み",1]
[null,"スロット内側丸み",0,"スロット内側丸み",0,"スロット内側丸み",1]

{"sheet":"コイル設定","index":3,"n_rows":16,"n_cols":9,"rows_kept":16,"cut":false,"hidden":false,"merged":[[1,0,4,0],[10,0,15,0],[5,0,9,0]]}
[null,"設計変数",null,null,"スロットNo.","1相","2相","1相の\nボディキー","2相の\nボディキー"]
["共通設定","3相交流周波数[Hz]",{"$f":"'設計パラメータ（共通）'!C3","v":60}]
[null,"スロット数",{"$f":"'設計パラメータ（共通）'!C10","v":24}]
[null,"スロットあたりの相数",{"$f":"'設計パラメータ（共通）'!C11","v":1}]
[null,"モデルの分割数",{"$f":"'設計パラメータ（共通）'!C19","v":4}]
["電源","電源駆動方式","電流源"]
[null,"電圧(振幅)[V]　電流(振幅)[A]",5]
[null,"U相の初期位相",84.5]
[null,"相順","U-W-V"]
[null,"電源結線方式","Y結線"]
["コイル","相抵抗[Ω]",0.8]
[null,"漏れインダクタンス[H]",0]
[null,"巻数",35]
[null,"ピッチ",6]
[null,"接続方法","直列"]
[null,"コイル結線方式","Y結線"]

{"sheet":"カスタム設定","index":4,"n_rows":1,"n_cols":7,"rows_kept":1,"cut":false,"hidden":true,"merged":[]}
["ボディキー","ボディ属性名","材料名","ボディ種類","磁化方向(X)","磁化方向(Z)","コイル巻数"]

{"sheet":"管理情報","index":5,"n_rows":189,"n_cols":25,"rows_kept":189,"cut":false,"hidden":true,"merged":[]}
["ロータ材","磁石材","ステータ材","コイル材","スロット内層数","T or F","回転周期","磁石の磁化方式","定常場高速解析","偏芯","駆動方式","相順","電源結線方式","コイル結線方式","コイルの系統数","コイル名","SLOT12_1","SLOT24_1","SLOT36_1","SLOT48_1","SLOT6_2","SLOT12_2","SLOT24_2","SLOT36_2","SLOT48_2"]
["35JN210_JFEスチール","NMX-S52_プロテリアル","35JN210_JFEスチール","008_銅Cu",1,true,"1周期","並行","なし","なし","電圧源","U-W-V","Y結線","Y結線","並列","U1+",1,1,3,2,1,1,1,1,1]
["35JN230_JFEスチール","NMX-S50BH_プロテリアル","35JN230_JFEスチール","001_アルミニウムAl",2,false,"半周期","ラジアル","簡易TP-EEC法","ロータ偏芯","電流源","U-V-W","Δ結線","Δ結線","2直N並列","U1-",3,2,9,4,null,2,2,2,2]
["35JN250_JFEスチール","NMX-S49CH_プロテリアル","35JN250_JFEスチール",null,null,null,null,"極異方性","3相交流簡易TP-EEC法","回転中心偏芯",null,null,null,"カスタム","N直2並列","V1+",null,3,null,6,null,3,3,3,3]
["35JN270_JFEスチール","NMX-S45SH_プロテリアル","35JN270_JFEスチール",null,null,null,null,null,null,null,null,null,null,null,"直列","V1-",null,5,null,10,null,null,4,4,4]
["35JN300_JFEスチール","NMX-S43SH_プロテリアル","35JN300_JFEスチール",null,null,null,null,null,null,null,null,null,null,null,null,"W1+",null,6,null,12,null,null,5,5,5]
["35JN360_JFEスチール","NMX-S41EH_プロテリアル","35JN360_JFEスチール",null,null,null,null,null,null,null,null,null,null,null,null,"W1-",null,null,null,null,null,null,6,6,6]
["35JN440_JFEスチール","NMX-S38EH_プロテリアル","35JN440_JFEスチール",null,null,null,null,null,null,null,null,null,null,null,null,"U2+",null,null,null,null,null,null,null,7,7]
["50JN230_JFEスチール","NMX-S36UH_プロテリアル","50JN230_JFEスチール",null,null,null,null,null,null,null,null,null,null,null,null,"U2-",null,null,null,null,null,null,null,8,8]
["50JN250_JFEスチール","NMX-48BH_プロテリアル","50JN250_JFEスチール",null,null,null,null,null,null,null,null,null,null,null,null,"V2+",null,null,null,null,null,null,null,9,9]
["50JN270_JFEスチール","NMX-46CH_プロテリアル","50JN270_JFEスチール",null,null,null,null,null,null,null,null,null,null,null,null,"V2-",null,null,null,null,null,null,null,null,10]
["50JN290_JFEスチール","NMX-44CH_プロテリアル","50JN290_JFEスチール",null,null,null,null,null,null,null,null,null,null,null,null,"W2+",null,null,null,null,null,null,null,null,11]
["50JN310_JFEスチール","NMX-41CH_プロテリアル","50JN310_JFEスチール",null,null,null,null,null,null,null,null,null,null,null,null,"W2-",null,null,null,null,null,null,null,null,12]
["50JN350_JFEスチール","NMX-43SH_プロテリアル","50JN350_JFEスチール",null,null,null,null,null,null,null,null,null,null,null,null,"U3+"]
["50JN400_JFEスチール","NMX-41SH_プロテリアル","50JN400_JFEスチール",null,null,null,null,null,null,null,null,null,null,null,null,"U3-"]
["50JN470_JFEスチール","NMX-39EH_プロテリアル","50JN470_JFEスチール",null,null,null,null,null,null,null,null,null,null,null,null,"V3+"]
["50JN600_JFEスチール","NMX-36EH_プロテリアル","50JN600_JFEスチール",null,null,null,null,null,null,null,null,null,null,null,null,"V3-"]
["50JN700_JFEスチール","NMX-33UH_プロテリアル","50JN700_JFEスチール",null,null,null,null,null,null,null,null,null,null,null,null,"W3+"]
["50JN800_JFEスチール","NMX-44_プロテリアル","50JN800_JFEスチール",null,null,null,null,null,null,null,null,null,null,null,null,"W3-"]
["50JN1000_JFEスチール","NMX-42BH_プロテリアル","50JN1000_JFEスチール",null,null,null,null,null,null,null,null,null,null,null,null,"U4+"]
["50JN1300_JFEスチール","NMX-40CH_プロテリアル","50JN1300_JFEスチール",null,null,null,null,null,null,null,null,null,null,null,null,"U4-"]
["50JNA350_JFEスチール","NMX-37SH_プロテリアル","50JNA350_JFEスチール",null,null,null,null,null,null,null,null,null,null,null,null,"V4+"]
["50JNA500_JFEスチール","NMX-34EH_プロテリアル","50JNA500_JFEスチール",null,null,null,null,null,null,null,null,null,null,null,null,"V4-"]
["20JNEH1200_JFEスチール","NMX-31UH_プロテリアル","20JNEH1200_JFEスチール",null,null,null,null,null,null,null,null,null,null,null,null,"W4+"]
["20JNEH1500_JFEスチール","NMF-3B_プロテリアル","20JNEH1500_JFEスチール",null,null,null,null,null,null,null,null,null,null,null,null,"W4-"]
["35JNE230_JFEスチール","NMF-3C_プロテリアル","35JNE230_JFEスチール"]
["35JNE250_JFEスチール","NMF-3D_プロテリアル","35JNE250_JFEスチール"]
["35JNE300_JFEスチール","NMF-3E_プロテリアル","35JNE300_JFEスチール"]
["50JNE300_JFEスチール","NMF-3F_プロテリアル","50JNE300_JFEスチール"]
["50JNE350_JFEスチール","NMF-3G_プロテリアル","50JNE350_JFEスチール"]
["50JNE470_JFEスチール","NMF-5C_プロテリアル","50JNE470_JFEスチール"]
["20JNHF1300_JFEスチール","NMF-5D_プロテリアル","20JNHF1300_JFEスチール"]
["10JNHF600_JFEスチール","NMF-5E_プロテリアル","10JNHF600_JFEスチール"]
["10JNEX900_JFEスチール","NMF-5F_プロテリアル","10JNEX900_JFEスチール"]
["35H210_日本製鉄","NMF-5G_プロテリアル","35H210_日本製鉄"]
["35H230_日本製鉄","NMF-6C_プロテリアル","35H230_日本製鉄"]
["35H250_日本製鉄","NMF-6D_プロテリアル","35H250_日本製鉄"]
["35H270_日本製鉄","NMF-6E_プロテリアル","35H270_日本製鉄"]
["35H300_日本製鉄","NMF-6F_プロテリアル","35H300_日本製鉄"]
["35H360_日本製鉄","NMF-6G_プロテリアル","35H360_日本製鉄"]
["35H440_日本製鉄","NMF-7C_プロテリアル","35H440_日本製鉄"]
["50H230_日本製鉄","NMF-7D_プロテリアル","50H230_日本製鉄"]
["50H250_日本製鉄","NMF-7E_プロテリアル","50H250_日本製鉄"]
["50H270_日本製鉄","NMF-7F_プロテリアル","50H270_日本製鉄"]
["50H290_日本製鉄","NMF-7G_プロテリアル","50H290_日本製鉄"]
["50H310_日本製鉄","NMF-9D_プロテリアル","50H310_日本製鉄"]
["50H350_日本製鉄","NMF-9E_プロテリアル","50H350_日本製鉄"]
["50H400_日本製鉄","NMF-9F_プロテリアル","50H400_日本製鉄"]
["50H470_日本製鉄","NMF-9G_プロテリアル","50H470_日本製鉄"]
["50H600_日本製鉄","NMF-12E_プロテリアル","50H600_日本製鉄"]
["50H700_日本製鉄","NMF-12F_プロテリアル","50H700_日本製鉄"]
["50H800_日本製鉄","NMF-12G_プロテリアル","50H800_日本製鉄"]
["50H1000_日本製鉄","CKSC-550B_プロテリアル","50H1000_日本製鉄"]
["50H1300_日本製鉄","CKSC-600_プロテリアル","50H1300_日本製鉄"]
[null,"CKSR-150_プロテリアル"]
[null,"CKSR-550_プロテリアル"]
[null,"CKSR-400H_プロテリアル"]
[null,"NKS-550_プロテリアル"]
[null,"NKS-600_プロテリアル"]
[null,"NKS-550H_プロテリアル"]
[null,"NKS-600H_プロテリアル"]
[null,"NKS-750_プロテリアル"]
[null,"N36Z_170deg_信越化学"]
[null,"N36Z_200deg_信越化学"]
[null,"N37UZ_20deg_信越化学"]
[null,"N37UZ_50deg_信越化学"]
[null,"N37UZ_80deg_信越化学"]
[null,"N37UZ_110deg_信越化学"]
[null,"N37UZ_140deg_信越化学"]
[null,"N37UZ_170deg_信越化学"]
[null,"N37UZ_200deg_信越化学"]
[null,"N39UH_20deg_信越化学"]
[null,"N39UH_50deg_信越化学"]
[null,"N39UH_80deg_信越化学"]
[null,"N39UH_110deg_信越化学"]
[null,"N39UH_140deg_信越化学"]
[null,"N39UH_170deg_信越化学"]
[null,"N39UH_200deg_信越化学"]
[null,"N41TS-R_20deg_信越化学"]
[null,"N41TS-R_50deg_信越化学"]
[null,"N41TS-R_80deg_信越化学"]
[null,"N41TS-R_110deg_信越化学"]
[null,"N41TS-R_140deg_信越化学"]
[null,"N41TS-R_170deg_信越化学"]
[null,"N41TS-R_200deg_信越化学"]
[null,"N41TU_20deg_信越化学"]
[null,"N41TU_50deg_信越化学"]
[null,"N41TU_80deg_信越化学"]
[null,"N41TU_110deg_信越化学"]
[null,"N41TU_140deg_信越化学"]
[null,"N41TU_170deg_信越化学"]
[null,"N41TU_200deg_信越化学"]
[null,"N42SH-R_20deg_信越化学"]
[null,"N42SH-R_50deg_信越化学"]
[null,"N42SH-R_80deg_信越化学"]
[null,"N42SH-R_110deg_信越化学"]
[null,"N42SH-R_140deg_信越化学"]
[null,"N42SH-R_170deg_信越化学"]
[null,"N42SH-R_200deg_信越化学"]
[null,"N44AS-R_20deg_信越化学"]
[null,"N44AS-R_50deg_信越化学"]
[null,"N44AS-R_80deg_信越化学"]
[null,"N44AS-R_110deg_信越化学"]
[null,"N44AS-R_140deg_信越化学"]
[null,"N44AS-R_170deg_信越化学"]
[null,"N44AS-R_200deg_信越化学"]
[null,"N43TS_20deg_信越化学"]
[null,"N43TS_50deg_信越化学"]
[null,"N43TS_80deg_信越化学"]
[null,"N43TS_110deg_信越化学"]
[null,"N43TS_140deg_信越化学"]
[null,"N43TS_170deg_信越化学"]
[null,"N43TS_200deg_信越化学"]
[null,"N46MH-MF_20deg_信越化学"]
[null,"N46MH-MF_50deg_信越化学"]
[null,"N46MH-MF_80deg_信越化学"]
[null,"N46MH-MF_110deg_信越化学"]
[null,"N46MH-MF_140deg_信越化学"]
[null,"N46MH-MF_170deg_信越化学"]
[null,"N46MH-MF_200deg_信越化学"]
[null,"N47TH-R_20deg_信越化学"]
[null,"N47TH-R_50deg_信越化学"]
[null,"N47TH-R_80deg_信越化学"]
[null,"N47TH-R_110deg_信越化学"]
[null,"N47TH-R_140deg_信越化学"]
[null,"N47TH-R_170deg_信越化学"]
[null,"N47TH-R_200deg_信越化学"]
[null,"N49M_20deg_信越化学"]
[null,"N49M_50deg_信越化学"]
[null,"N49M_80deg_信越化学"]
[null,"N49M_110deg_信越化学"]
[null,"N49M_140deg_信越化学"]
[null,"N49M_170deg_信越化学"]
[null,"N49M_200deg_信越化学"]
[null,"N48H-F_20deg_信越化学"]
[null,"N48H-F_50deg_信越化学"]
[null,"N48H-F_80deg_信越化学"]
[null,"N48H-F_110deg_信越化学"]
[null,"N48H-F_140deg_信越化学"]
[null,"N48H-F_170deg_信越化学"]
[null,"N48H-F_200deg_信越化学"]
[null,"N49H_20deg_信越化学"]
[null,"N49H_50deg_信越化学"]
[null,"N49H_80deg_信越化学"]
[null,"N49H_110deg_信越化学"]
[null,"N49H_140deg_信越化学"]
[null,"N49H_170deg_信越化学"]
[null,"N49H_200deg_信越化学"]
[null,"N50_20deg_信越化学"]
[null,"N50_50deg_信越化学"]
[null,"N50_80deg_信越化学"]
[null,"N50_110deg_信越化学"]
[null,"N50_140deg_信越化学"]
[null,"N50_170deg_信越化学"]
[null,"N50_200deg_信越化学"]
[null,"N50M_20deg_信越化学"]
[null,"N50M_50deg_信越化学"]
[null,"N50M_80deg_信越化学"]
[null,"N50M_110deg_信越化学"]
[null,"N50M_140deg_信越化学"]
[null,"N50M_170deg_信越化学"]
[null,"N50M_200deg_信越化学"]
[null,"N52_20deg_信越化学"]
[null,"N52_50deg_信越化学"]
[null,"N52_80deg_信越化学"]
[null,"N52_110deg_信越化学"]
[null,"N52_140deg_信越化学"]
[null,"N52_170deg_信越化学"]
[null,"N52_200deg_信越化学"]
[null,"TS-26H_20deg_東芝マテリアル"]
[null,"TS-26H_100deg_東芝マテリアル"]
[null,"TS-26H_150deg_東芝マテリアル"]
[null,"TS-26H_200deg_東芝マテリアル"]
[null,"TS-26H_250deg_東芝マテリアル"]
[null,"TS-28SS_20deg_東芝マテリアル"]
[null,"TS-28SS_100deg_東芝マテリアル"]
[null,"TS-28SS_150deg_東芝マテリアル"]
[null,"TS-28SS_200deg_東芝マテリアル"]
[null,"TS-28SS_250deg_東芝マテリアル"]
[null,"TS-32H_20deg_東芝マテリアル"]
[null,"TS-32H_100deg_東芝マテリアル"]
[null,"TS-32H_150deg_東芝マテリアル"]
[null,"TS-32H_200deg_東芝マテリアル"]
[null,"TS-32H_250deg_東芝マテリアル"]
[null,"TS-33SS_20deg_東芝マテリアル"]
[null,"TS-33SS_100deg_東芝マテリアル"]
[null,"TS-33SS_150deg_東芝マテリアル"]
[null,"TS-33SS_200deg_東芝マテリアル"]
[null,"TS-33SS_250deg_東芝マテリアル"]

{"sheet":"サンプル(例題)","index":6,"n_rows":87,"n_cols":10,"rows_kept":87,"cut":false,"hidden":false,"merged":[[24,0,27,0],[28,0,29,0],[30,0,33,0],[36,0,38,0],[2,0,4,0],[5,0,9,0],[10,0,15,0],[16,0,18,0],[19,0,22,0]]}
["サンプル","初期値\n(Innor Rotor)","初期値\n(Outer Rotor)","IPM同期モータ","SPM同期モータ","かご型非同期モータ","発電機","IPM同期モータ\n(偏芯あり)","OuterRotor\n同期モータ"]
["設計パラメータタブ"]
["モデル全体",1800,1800,1800,1800,0,3000,1800,6960]
[null,60,60,60,60,50,0,60,812]
[null,60,50,60,30,42,30,30,6]
["Rotor",4,6,4,4,0,4,4,14]
[null,55,55,55,55,69.400000000000006,56,50,22.8]
[null,16,42,16,16,0,9,16,18.5]
[null,"35JN270_JFEスチール","35JN210_JFEスチール","35JN270_JFEスチール","35JN210_JFEスチール","35JN210_JFEスチール","35JN210_JFEスチール","35JN210_JFEスチール","35JN210_JFEスチール"]
[null,"NMX-S43SH_プロテリアル","NMX-S52_プロテリアル","NMX-S43SH_プロテリアル","NMX-S52_プロテリアル","001_アルミニウムAl","NMX-S52_プロテリアル","NMX-S52_プロテリアル","NMX-S52_プロテリアル"]
["Stator",24,12,24,24,24,6,24,12]
[null,1,2,1,1,1,2,1,2]
[null,112,40,112,112,108,104,112,18]
[null,56,10,56,56,70,57,56,8]
[null,"35JN270_JFEスチール","35JN210_JFEスチール","35JN270_JFEスチール","35JN210_JFEスチール","35JN210_JFEスチール","35JN210_JFEスチール","35JN210_JFEスチール","35JN210_JFEスチール"]
[null,"008_銅Cu","008_銅Cu","008_銅Cu","008_銅Cu","008_銅Cu","008_銅Cu","008_銅Cu","008_銅Cu"]
["解析設定",1,1,1,1,2,1,1,0.7]
[null,1.2,1.2,1.2,1.2,1.2,1.25,1.2,1.2]
[null,180,180,180,180,800,180,180,180]
["対称性",4,1,4,2,2,2,1,1]
[null,4,1,4,1,1,1,1,1]
[null,1,1,1,2,2,2,1,1]
[null,"半周期","1周期","半周期","1周期","1周期","1周期","1周期","1周期"]
["高度な設定"]
["ロータコア",true,true,true,true,false,false,true,false]
[null,97,95,97,97,100,100,97,100]
[null,false,false,false,false,false,false,false,false]
[null,true,true,true,true,true,true,true,true]
["磁石","並行","並行","並行","並行","並行","並行","並行","並行"]
[null,false,false,false,false,false,false,false,false]
["ステータコア",true,true,true,true,false,false,true,false]
[null,97,95,97,97,100,100,97,100]
[null,false,false,false,false,false,false,false,false]
[null,true,true,true,true,true,true,true,true]
["コイル",false,false,false,false,false,false,false,false]
[null,"なし","簡易TP-EEC法","なし","簡易TP-EEC法","簡易TP-EEC法","簡易TP-EEC法","簡易TP-EEC法","簡易TP-EEC法"]
["ロータ偏芯","なし","なし","なし","なし","なし","なし","回転中心偏芯","なし"]
[null,0,0,0,0,0,0,1,0]
[null,0,0,0,0,0,0,0,0]
[]
["Rotorタブ","Inner(IPM)","Outer(SPM)","Inner(IPM)","Inner(SPM)","Inner(かご)","Inner\n(IPM Cut)","Inner(IPM)","Outer\n(SPM Width)"]
[null,2.5,4,2.5,5,"35JN210_JFEスチール",3,2.5,1.5]
[null,22,1,22,4,"001_アルミニウムAl",29,22,3]
[null,5,0,5,0,34,12,5,0]
[null,1.5,0,1.5,0,28,6.5,1.5,0]
[null,0.7,null,0.7,null,6.5,null,0.7]
[null,135,null,135,null,3.2,null,135]
[null,0.5,null,0.5,null,0.8,null,0.5]
[null,null,null,null,null,0]
[null,null,null,null,null,0]
[null,null,null,null,null,1.25]
[null,null,null,null,null,1]
["Statorタブ","Outer(Parallel)","Inner(Parallel)","Outer(Parallel)","Outer(Parallel)","Outer(Parallel)","Outer(Parallel)","Outer(Parallel)","Inner(Parallel)"]
[null,1.9,5,1.9,1.9,0.8,4,1.9,1]
[null,12,8,12,12,11.700000000000003,13.000000000000004,12,3.5]
[null,2,1,2,2,2.4,2.7,2,1]
[null,3.3,1,3.3,3.3,4,10,3.3,1]
[null,0,0,0,0,2,0,0,0]
[null,0,0,0,0,1.5,0,0,0]
[null,3.375,0,3.375,3.375,0,0,3.375,0]
[null,0,0,0,0,0,0,0,0]
["電源・Coil設定タブ"]
[null,"電流源","電圧源","電流源","電圧源","電圧源","電圧源","電圧源","電圧源"]
[null,5,100,5,100,80,0,100,24]
[null,84.5,60,84.5,68,0,0,68,0]
[null,"U-W-V","U-W-V","U-W-V","U-W-V","U-W-V","U-W-V","U-W-V","U-W-V"]
[null,"Y結線","Y結線","Y結線","Y結線","Y結線","Y結線","Y結線","Y結線"]
[null,0.8,0.1,0.8,0.1,0.2,2.5000000000000001E-2,0.1,0.1]
[null,0,0,0,0,0,0,0,0]
[null,35,30,35,35,60,15,35,30]
[null,6,1,6,6,6,1,6,1]
[null,"直列","並列","直列","直列","直列","直列","直列","直列"]
[null,"Y結線","Y結線","Y結線","Y結線","Y結線","Y結線","Y結線","Y結線"]
[]
[null,null,null,null,null,null,null,null,"OuterRotor用のコイル接続情報"]
[null,null,null,null,null,null,null,null,"W1+","U1+"]
[null,null,null,null,null,null,null,null,"U1-","U1-"]
[null,null,null,null,null,null,null,null,"U1+","U1+"]
[null,null,null,null,null,null,null,null,"U1-","U1-"]
[null,null,null,null,null,null,null,null,"U1+","V1+"]
[null,null,null,null,null,null,null,null,"V1-","V1-"]
[null,null,null,null,null,null,null,null,"V1+","V1+"]
[null,null,null,null,null,null,null,null,"V1-","V1-"]
[null,null,null,null,null,null,null,null,"V1+","W1+"]
[null,null,null,null,null,null,null,null,"W1-","W1-"]
[null,null,null,null,null,null,null,null,"W1+","W1+"]
[null,null,null,null,null,null,null,null,"W1-","W1-"]

{"sheet":"開発者メモ","index":7,"n_rows":8,"n_cols":4,"rows_kept":8,"cut":false,"hidden":true,"merged":[]}
[null,"リリースバージョン","日付","開発ログ"]
[null,null,"2017.5.29","Rotor(9種類)、Stator(2種類)をリリース"]
[null,null,"2017.6.2","偏芯対応"]
[null,"Ver2017.0.0","2017.6.2","3相交流電流源対応"]
[null,null,"2017.6.10","エラーが起こった時にグループ毎に処理できるように、Rotor,Statorのグループを設定した"]
[null,"Ver2017.0.3","2017.8.24","3相交流電源の結線方法（Y結線、Δ結線）を選べるようにした"]
[null,"Ver2018.0.0","2018.5.8","Rotor(2種類)、Stator(4種類)を追加"]
[null,null,"2018.5.8","東芝マテリアル磁石材料(20種類)を追加"]